[Event "44th Chess Olympiad Open 2022"]
[Site "Chennai"]
[Date "2022.08.01"]
[Round "4.64"]
[White "Alfaro, William"]
[Black "Martyr, Reginald"]
[Result "0-1"]
[WhiteElo "2155"]
[BlackElo "2194"]
[Annotator "NA RC"]
[PlyCount "68"]
[EventDate "2022.??.??"]
[TimeControl "60"]

1. d4 {[%emt 0:00:49]} f5 {[%emt 0:00:23]} 2. g3 {[%emt 0:00:59]} Nf6 {[%emt 0:
00:00]} 3. Bg2 {[%emt 0:00:05]} g6 {[%emt 0:00:12]} 4. c4 {[%emt 0:00:18]} Bg7
{[%emt 0:02:06]} 5. Nc3 {[%emt 0:00:06]} d6 {[%emt 0:02:01]} 6. Nf3 {[%emt 0:
00:00]} O-O {[%emt 0:00:17]} 7. O-O {[%emt 0:00:11]} Nc6 {[%emt 0:01:53]} 8.
Qb3 {[%emt 0:15:43]} Ne4 {[%emt 0:15:41]} 9. Rd1 {[%emt 0:00:36]} Nxc3 {
[%emt 0:05:22]} 10. Qxc3 {[%emt 0:03:48]} Qe8 {[%emt 0:09:50]} 11. Qb3 {
[%emt 0:00:25]} e5 {[%emt 0:03:48]} 12. c5+ {[%emt 0:00:14]} Kh8 {[%emt 0:00:
00]} 13. d5 {[%emt 0:00:39]} Nb8 {[%emt 0:04:40]} 14. cxd6 {[%emt 0:00:34]}
cxd6 {[%emt 0:03:52]} 15. Bd2 {[%emt 0:03:13]} Na6 {[%emt 0:04:27]} 16. Bb4 {
[%emt 0:04:54]} Nxb4 {[%emt 0:13:25]} 17. Qxb4 {[%emt 0:01:02]} Qe7 {[%emt 0:
00:00]} 18. Rac1 {[%emt 0:00:05]} g5 {[%emt 0:04:28]} 19. Nd2 {[%emt 0:09:47]}
e4 {[%emt 0:06:06]} 20. e3 {[%emt 0:01:24]} h5 {[%emt 0:01:16]} 21. Rc2 {
[%emt 0:03:33]} b6 {[%emt 0:04:00]} 22. Nc4 {[%emt 0:07:11]} Rd8 {[%emt 0:00:
00]} 23. Qa3 {[%emt 0:00:42]} Bb7 {[%emt 0:00:23]} 24. b4 {[%emt 0:04:08]} Rdc8
{[%emt 0:02:07]} 25. Qb3 {[%emt 0:02:05]} Rc7 {[%emt 0:00:01]} 26. f3 {[%emt 0:
00:00]} Rac8 {[%emt 0:04:52]} 27. fxe4 {[%emt 0:05:49]} b5 {[%emt 0:01:09]} 28.
Na3 {[%emt 0:02:24]} Rc3 {[%emt 0:00:26]} 29. Rdc1 {[%emt 0:00:04]} Rxb3 {
[%emt 0:01:56]} 30. Rxc8+ {[%emt 0:00:05]} Bxc8 {[%emt 0:00:01]} 31. Rxc8+ {
[%emt 0:00:01]} Kh7 {[%emt 0:00:34]} 32. axb3 {[%emt 0:00:01]} a6 {[%emt 0:00:
00]} 33. Rc6 {[%emt 0:00:02]} Qe5 {[%emt 0:00:56]} 34. Rxa6 {[%emt 0:01:07]}
Qc3 {[%emt 0:01:20]} 0-1

[Event "44th Chess Olympiad Open 2022"]
[Site "Chennai"]
[Date "2022.08.01"]
[Round "4.64"]
[White "Salazar Cabezas, Alberto Javier"]
[Black "Mathurin, Nathaniel"]
[Result "0-1"]
[WhiteElo "2155"]
[BlackElo "1722"]
[Annotator "NA RC"]
[PlyCount "110"]
[EventDate "2022.??.??"]
[TimeControl "60"]

1. Nf3 {[%emt 0:00:03]} Nf6 {[%emt 0:00:16]} 2. c4 {[%emt 0:00:04]} e6 {
[%emt 0:00:41]} 3. g3 {[%emt 0:00:05]} d5 {[%emt 0:00:03]} 4. Bg2 {[%emt 0:00:
00]} Be7 {[%emt 0:00:17]} 5. O-O {[%emt 0:00:05]} O-O {[%emt 0:00:02]} 6. b3 {
[%emt 0:00:05]} dxc4 {[%emt 0:00:42]} 7. bxc4 {[%emt 0:00:05]} c5 {[%emt 0:00:
00]} 8. Bb2 {[%emt 0:00:59]} Nc6 {[%emt 0:01:37]} 9. Nc3 {[%emt 0:00:36]} Rb8 {
[%emt 0:02:39]} 10. d3 {[%emt 0:04:21]} a6 {[%emt 0:05:00]} 11. a4 {[%emt 0:00:
00]} Ne8 {[%emt 0:17:13]} 12. e3 {[%emt 0:03:26]} Bf6 {[%emt 0:11:01]} 13. Qe2
{[%emt 0:00:24]} Nd6 {[%emt 0:08:03]} 14. Rfd1 {[%emt 0:01:32]} Qc7 {[%emt 0:
00:00]} 15. g4 {[%emt 0:05:10]} Qe7 {[%emt 0:04:03]} 16. g5 {[%emt 0:04:05]}
Bxg5 {[%emt 0:00:08]} 17. Nxg5 {[%emt 0:00:02]} Qxg5 {[%emt 0:00:02]} 18. Kh1 {
[%emt 0:01:51]} e5 {[%emt 0:10:19]} 19. f4 {[%emt 0:22:10]} Qh4 {[%emt 0:03:16]
} 20. Rg1 {[%emt 0:07:20]} Be6 {[%emt 0:03:42]} 21. Nd5 {[%emt 0:02:43]} Bg4 {
[%emt 0:10:06]} 22. Bf3 {[%emt 0:02:11]} Bxf3+ {[%emt 0:02:02]} 23. Qxf3 {
[%emt 0:00:02]} f6 {[%emt 0:00:01]} 24. Rg4 {[%emt 0:03:13]} Qh6 {[%emt 0:00:
00]} 25. Rag1 {[%emt 0:01:03]} Rf7 {[%emt 0:03:38]} 26. f5 {[%emt 0:04:10]} e4
{[%emt 0:09:25]} 27. Qg2 {[%emt 0:11:08]} Nxf5 {[%emt 0:03:44]} 28. dxe4 {
[%emt 0:00:25]} Nh4 {[%emt 0:00:22]} 29. Qh3 {[%emt 0:02:44]} Ng6 30. Qxh6 {
[%emt 0:00:06]} gxh6 {[%emt 0:00:04]} 31. Nxf6+ {[%emt 0:00:11]} Kf8 {[%emt 0:
00:00]} 32. e5 {[%emt 0:00:34]} Ke7 {[%emt 0:01:22]} 33. Nd5+ {[%emt 0:04:14]}
Kd7 {[%emt 0:00:01]} 34. Re4 {[%emt 0:00:49]} Ke6 {[%emt 0:01:20]} 35. Reg4 {
[%emt 0:00:35]} Ncxe5 {[%emt 0:00:34]} 36. R4g2 {[%emt 0:00:29]} Nxc4 {[%emt 0:
00:00]} 37. e4 {[%emt 0:00:18]} Nf4 {[%emt 0:00:36]} 38. Nxf4+ {[%emt 0:00:28]}
Rxf4 {[%emt 0:00:01]} 39. Bc1 {[%emt 0:00:33]} Rxe4 {[%emt 0:00:04]} 40. Bxh6 {
[%emt 0:00:02]} b5 {[%emt 0:01:21]} 41. Rb1 {[%emt 0:30:21]} Rb7 {[%emt 0:00:
00]} 42. Rg5 {[%emt 0:00:29]} Ne5 {[%emt 0:00:31]} 43. Rg8 {[%emt 0:00:25]} b4
{[%emt 0:00:27]} 44. Bf8 {[%emt 0:00:53]} Kd5 {[%emt 0:00:41]} 45. Rgg1 {
[%emt 0:00:00]} b3 {[%emt 0:00:00]} 46. Rgd1+ {[%emt 0:00:00]} Rd4 {[%emt 0:00:
00]} 47. Re1 {[%emt 0:00:00]} c4 {[%emt 0:00:00]} 48. Rec1 {[%emt 0:00:00]} Rf7
{[%emt 0:00:00]} 49. Bh6 {[%emt 0:00:00]} Ng4 {[%emt 0:00:00]} 50. Bg5 {
[%emt 0:00:00]} Rf2 {[%emt 0:00:00]} 51. h3 {[%emt 0:00:00]} Ne5 {[%emt 0:00:
00]} 52. Be3 {[%emt 0:00:00]} Re2 {[%emt 0:00:00]} 53. Bxd4 {[%emt 0:00:00]}
Kxd4 {[%emt 0:00:00]} 54. Kg1 {[%emt 0:00:00]} b2 {[%emt 0:00:00]} 55. Rd1+ {
[%emt 0:00:00]} Ke3 {[%emt 0:00:00]} 0-1

[Event "44th Chess Olympiad Open 2022"]
[Site "Chennai"]
[Date "2022.08.01"]
[Round "4.64"]
[White "Sixtus Gabriel"]
[Black "Rocha, Maximiliano"]
[Result "0-1"]
[WhiteElo "1787"]
[BlackElo "2117"]
[Annotator "NA RC"]
[PlyCount "110"]
[EventDate "2022.??.??"]
[TimeControl "60"]

1. e4 {[%emt 0:00:11]} e5 {[%emt 0:00:09]} 2. Nf3 {[%emt 0:00:14]} Nc6 {
[%emt 0:00:09]} 3. Bc4 {[%emt 0:00:18]} Bc5 {[%emt 0:00:12]} 4. d3 {[%emt 0:00:
00]} d6 {[%emt 0:00:47]} 5. c3 {[%emt 0:01:39]} Nf6 {[%emt 0:02:48]} 6. Nbd2 {
[%emt 0:02:02]} a6 {[%emt 0:03:36]} 7. Qe2 {[%emt 0:04:09]} O-O {[%emt 0:02:07]
} 8. O-O {[%emt 0:02:41]} Ba7 {[%emt 0:02:07]} 9. h3 {[%emt 0:02:29]} Ne7 {
[%emt 0:00:28]} 10. d4 {[%emt 0:03:43]} Ng6 {[%emt 0:00:06]} 11. Nb3 {[%emt 0:
00:00]} Qe7 {[%emt 0:00:45]} 12. Re1 {[%emt 0:02:18]} h6 {[%emt 0:00:19]} 13.
Bd2 {[%emt 0:03:54]} Re8 {[%emt 0:02:07]} 14. Bd3 {[%emt 0:03:16]} Bd7 {
[%emt 0:03:27]} 15. Na5 {[%emt 0:04:20]} Rab8 {[%emt 0:04:05]} 16. Rad1 {
[%emt 0:01:41]} Nh5 {[%emt 0:16:30]} 17. dxe5 {[%emt 0:14:08]} dxe5 {[%emt 0:
00:00]} 18. Kh2 {[%emt 0:05:02]} Nhf4 {[%emt 0:00:59]} 19. Bxf4 {[%emt 0:01:12]
} Nxf4 {[%emt 0:00:08]} 20. Qf1 {[%emt 0:03:23]} b5 {[%emt 0:03:11]} 21. Nb3 {
[%emt 0:05:55]} Rbd8 {[%emt 0:01:36]} 22. Nc1 {[%emt 0:00:46]} Qf6 {[%emt 0:00:
00]} 23. Ng1 {[%emt 0:01:40]} Be6 {[%emt 0:00:35]} 24. b3 {[%emt 0:01:17]} g5 {
[%emt 0:00:55]} 25. g3 {[%emt 0:01:12]} Ng6 {[%emt 0:00:08]} 26. Kg2 {[%emt 0:
00:00]} Bc8 {[%emt 0:02:43]} 27. Bc2 {[%emt 0:00:40]} Kg7 {[%emt 0:03:21]} 28.
Rxd8 {[%emt 0:00:48]} Rxd8 {[%emt 0:02:55]} 29. Rd1 {[%emt 0:00:59]} g4 {
[%emt 0:09:50]} 30. h4 {[%emt 0:06:53]} Rxd1 {[%emt 0:01:44]} 31. Bxd1 {
[%emt 0:00:58]} h5 {[%emt 0:00:20]} 32. Nd3 {[%emt 0:03:23]} Qc6 {[%emt 0:00:
00]} 33. Qe1 {[%emt 0:02:27]} f5 {[%emt 0:02:39]} 34. Nb4 {[%emt 0:05:36]}
Qxe4+ {[%emt 0:03:25]} 35. Qxe4 {[%emt 0:00:31]} fxe4 {[%emt 0:00:02]} 36. Nc6
{[%emt 0:03:03]} Bc5 {[%emt 0:00:11]} 37. Bc2 {[%emt 0:00:50]} Bf5 {[%emt 0:00:
00]} 38. b4 {[%emt 0:01:11]} Bb6 {[%emt 0:01:52]} 39. Ne2 {[%emt 0:01:10]} Kf6
{[%emt 0:02:27]} 40. Kf1 {[%emt 0:03:45]} e3 {[%emt 0:00:12]} 41. Bxf5 {
[%emt 0:30:39]} Kxf5 {[%emt 0:30:11]} 42. fxe3 {[%emt 0:00:55]} Ke4 {[%emt 0:
00:00]} 43. Nb8 {[%emt 0:03:10]} Ne7 {[%emt 0:00:16]} 44. Nxa6 {[%emt 0:00:23]}
Nf5 {[%emt 0:02:09]} 45. Nb8 {[%emt 0:01:50]} Nxe3+ {[%emt 0:01:36]} 46. Ke1 {
[%emt 0:00:28]} Nc4 {[%emt 0:01:18]} 47. Nd7 {[%emt 0:01:14]} Kf3 {[%emt 0:00:
00]} 48. Nf6 {[%emt 0:00:00]} Bf2+ {[%emt 0:00:00]} 49. Kd1 {[%emt 0:00:00]}
Bxg3 {[%emt 0:00:00]} 50. Nxg3 {[%emt 0:00:00]} Kxg3 {[%emt 0:00:00]} 51. Nxh5+
{[%emt 0:00:00]} Kxh4 {[%emt 0:00:00]} 52. Nf6 {[%emt 0:00:00]} g3 {[%emt 0:00:
00]} 53. Ke2 {[%emt 0:00:00]} Kh3 {[%emt 0:00:00]} 54. a3 {[%emt 0:00:00]} g2 {
[%emt 0:00:00]} 55. Kf2 {[%emt 0:00:00]} Nd2 {[%emt 0:00:00]} 0-1

[Event "44th Chess Olympiad Open 2022"]
[Site "Chennai"]
[Date "2022.08.01"]
[Round "4.65"]
[White "Jaiswal, Rupesh"]
[Black "Diop, Wara"]
[Result "1-0"]
[WhiteElo "2083"]
[BlackElo "1636"]
[Annotator "NA RC"]
[PlyCount "129"]
[EventDate "2022.??.??"]
[TimeControl "60"]

1. d4 {[%emt 0:00:04]} Nf6 {[%emt 0:00:44]} 2. Bf4 {[%emt 0:00:07]} d5 {
[%emt 0:00:31]} 3. e3 {[%emt 0:00:05]} e6 {[%emt 0:01:03]} 4. Bd3 {[%emt 0:00:
00]} Nbd7 {[%emt 0:01:30]} 5. Nd2 {[%emt 0:00:08]} c5 {[%emt 0:01:59]} 6. c3 {
[%emt 0:00:05]} Qb6 {[%emt 0:01:45]} 7. Qb1 {[%emt 0:01:16]} Be7 {[%emt 0:00:
00]} 8. Ngf3 {[%emt 0:00:05]} h6 {[%emt 0:01:57]} 9. h3 {[%emt 0:00:51]} c4 {
[%emt 0:01:43]} 10. Bc2 {[%emt 0:00:13]} Qa5 {[%emt 0:05:51]} 11. e4 {[%emt 0:
00:00]} dxe4 {[%emt 0:06:06]} 12. Nxe4 {[%emt 0:00:09]} Nxe4 {[%emt 0:01:39]}
13. Bxe4 {[%emt 0:00:06]} Nf6 {[%emt 0:00:37]} 14. Bc2 {[%emt 0:01:46]} Bd7 {
[%emt 0:01:31]} 15. Ne5 {[%emt 0:00:56]} Qd5 {[%emt 0:02:18]} 16. O-O {[%emt 0:
00:00]} Bc6 {[%emt 0:08:13]} 17. f3 {[%emt 0:00:40]} g5 {[%emt 0:03:31]} 18.
Bh2 {[%emt 0:01:26]} h5 {[%emt 0:03:05]} 19. Be4 {[%emt 0:09:28]} Nxe4 {
[%emt 0:02:00]} 20. fxe4 {[%emt 0:00:05]} Qxe4 {[%emt 0:00:34]} 21. Qxe4 {
[%emt 0:00:15]} Bxe4 {[%emt 0:00:22]} 22. Rxf7 {[%emt 0:00:09]} g4 {[%emt 0:00:
00]} 23. Re1 {[%emt 0:01:28]} Bf5 {[%emt 0:00:46]} 24. Rxf5 {[%emt 0:06:13]}
exf5 {[%emt 0:04:58]} 25. Ng6 {[%emt 0:00:57]} Kf7 {[%emt 0:00:20]} 26. Nxh8+ {
[%emt 0:02:19]} Rxh8 {[%emt 0:00:18]} 27. Re5 {[%emt 0:00:11]} Kf6 {[%emt 0:00:
00]} 28. Rb5 {[%emt 0:00:21]} Rg8 {[%emt 0:03:26]} 29. hxg4 {[%emt 0:00:34]}
Rxg4 {[%emt 0:01:39]} 30. Rxb7 {[%emt 0:00:52]} f4 {[%emt 0:01:50]} 31. Kf1 {
[%emt 0:03:17]} Bd6 {[%emt 0:01:59]} 32. Rxa7 {[%emt 0:01:22]} Rh4 {[%emt 0:00:
00]} 33. Ra6 {[%emt 0:00:49]} Ke7 {[%emt 0:01:41]} 34. Kg1 {[%emt 0:01:06]} Rg4
{[%emt 0:00:05]} 35. Kf2 {[%emt 0:00:09]} Rh4 {[%emt 0:00:58]} 36. Bg1 {
[%emt 0:00:04]} Rg4 {[%emt 0:00:39]} 37. Ra5 {[%emt 0:00:55]} h4 {[%emt 0:00:
00]} 38. Bh2 {[%emt 0:00:06]} h3 {[%emt 0:01:18]} 39. gxh3 {[%emt 0:01:31]} Rh4
{[%emt 0:04:52]} 40. Ra7+ {[%emt 0:05:49]} Ke6 {[%emt 0:00:00]} 41. Ra6 {
[%emt 0:30:42]} Kd5 {[%emt 0:28:02]} 42. b3 {[%emt 0:02:31]} Rxh3 {[%emt 0:00:
00]} 43. bxc4+ {[%emt 0:01:51]} Kxc4 {[%emt 0:01:00]} 44. Rxd6 {[%emt 0:00:47]}
Rxh2+ {[%emt 0:01:20]} 45. Kf3 {[%emt 0:00:02]} Kxc3 {[%emt 0:05:30]} 46. a4 {
[%emt 0:00:04]} Ra2 {[%emt 0:00:51]} 47. Kxf4 {[%emt 0:00:10]} Rxa4 {[%emt 0:
00:00]} 48. Ke4 {[%emt 0:00:05]} Kc4 {[%emt 0:01:41]} 49. Rc6+ {[%emt 0:00:05]}
Kb5 {[%emt 0:00:40]} 50. Rc2 {[%emt 0:00:03]} Kb6 {[%emt 0:00:41]} 51. Ke5 {
[%emt 0:00:04]} Ra1 {[%emt 0:00:26]} 52. d5 {[%emt 0:00:06]} Re1+ {[%emt 0:00:
00]} 53. Kf6 {[%emt 0:00:04]} Rf1+ {[%emt 0:00:44]} 54. Ke7 {[%emt 0:00:10]}
Re1+ {[%emt 0:00:54]} 55. Kd6 {[%emt 0:00:38]} Kb7 {[%emt 0:03:57]} 56. Kd7 {
[%emt 0:00:03]} Re5 {[%emt 0:01:39]} 57. Rb2+ {[%emt 0:00:13]} Ka6 {[%emt 0:00:
00]} 58. d6 {[%emt 0:00:01]} Re1 {[%emt 0:04:43]} 59. Kc7 {[%emt 0:00:02]} Rc1+
{[%emt 0:00:43]} 60. Kd8 {[%emt 0:00:02]} Rd1 {[%emt 0:01:31]} 61. d7 {[%emt 0:
00:00]} Rd3 {[%emt 0:01:12]} 62. Rb4 {[%emt 0:00:15]} Ka5 {[%emt 0:02:13]} 63.
Rb7 {[%emt 0:00:02]} Ka6 {[%emt 0:00:34]} 64. Kc8 {[%emt 0:00:07]} Rd4 {
[%emt 0:02:05]} 65. Rc7 {[%emt 0:00:03]} 1-0

[Event "44th Chess Olympiad Open 2022"]
[Site "Chennai"]
[Date "2022.08.01"]
[Round "4.65"]
[White "Lama, Milan"]
[Black "Wane, Al Hassane"]
[Result "1-0"]
[WhiteElo "2024"]
[BlackElo "1750"]
[Annotator "NA RC"]
[PlyCount "117"]
[EventDate "2022.??.??"]
[TimeControl "60"]

1. e4 {[%emt 0:00:03]} d6 {[%emt 0:00:33]} 2. d4 {[%emt 0:00:08]} Nf6 {[%emt 0:
00:00]} 3. Nc3 {[%emt 0:00:09]} Nc6 {[%emt 0:00:45]} 4. f4 {[%emt 0:04:03]} Bg4
{[%emt 0:03:14]} 5. Qd3 {[%emt 0:03:47]} e5 {[%emt 0:04:15]} 6. d5 {[%emt 0:00:
00]} Nd4 {[%emt 0:02:50]} 7. f5 {[%emt 0:03:57]} Nd7 {[%emt 0:09:15]} 8. Be3 {
[%emt 0:04:59]} Nc5 {[%emt 0:11:19]} 9. Qd2 {[%emt 0:00:45]} g6 {[%emt 0:04:20]
} 10. Bxd4 {[%emt 0:05:31]} exd4 {[%emt 0:01:25]} 11. Qxd4 {[%emt 0:00:10]} Rg8
{[%emt 0:01:06]} 12. Bb5+ {[%emt 0:07:40]} Nd7 {[%emt 0:02:43]} 13. Bxd7+ {
[%emt 0:17:07]} Kxd7 {[%emt 0:01:10]} 14. f6 {[%emt 0:02:38]} Kc8 {[%emt 0:00:
00]} 15. e5 {[%emt 0:03:30]} Bf5 {[%emt 0:00:54]} 16. e6 {[%emt 0:03:14]} fxe6
{[%emt 0:01:02]} 17. dxe6 {[%emt 0:02:23]} Bxe6 {[%emt 0:00:47]} 18. Nf3 {
[%emt 0:01:53]} g5 {[%emt 0:04:30]} 19. Ne4 {[%emt 0:02:42]} g4 {[%emt 0:03:08]
} 20. Nfg5 {[%emt 0:00:56]} Bf5 {[%emt 0:01:31]} 21. O-O {[%emt 0:01:15]} Bxe4
{[%emt 0:03:42]} 22. Nxe4 {[%emt 0:00:08]} d5 {[%emt 0:01:52]} 23. Rad1 {
[%emt 0:01:48]} c6 {[%emt 0:02:14]} 24. Qe5 {[%emt 0:02:50]} Qb6+ {[%emt 0:00:
00]} 25. Kh1 {[%emt 0:00:23]} Rg6 {[%emt 0:03:28]} 26. Qe6+ {[%emt 0:00:38]}
Kc7 {[%emt 0:00:31]} 27. Qf7+ {[%emt 0:00:13]} Kc8 {[%emt 0:03:21]} 28. Qxf8+ {
[%emt 0:00:24]} Qd8 {[%emt 0:00:21]} 29. Qf7 {[%emt 0:01:13]} Qd7 {[%emt 0:00:
00]} 30. Qf8+ {[%emt 0:01:30]} Qd8 {[%emt 0:00:19]} 31. Nd6+ {[%emt 0:00:59]}
Kc7 {[%emt 0:01:53]} 32. Qxd8+ {[%emt 0:02:31]} Rxd8 {[%emt 0:00:12]} 33. f7 {
[%emt 0:04:53]} Rf8 {[%emt 0:01:08]} 34. Ne8+ {[%emt 0:00:33]} Kd8 {[%emt 0:00:
00]} 35. c4 {[%emt 0:02:08]} Ke7 {[%emt 0:05:14]} 36. cxd5 {[%emt 0:03:53]}
cxd5 {[%emt 0:01:39]} 37. Rde1+ {[%emt 0:01:09]} Re6 {[%emt 0:00:59]} 38. Rxe6+
{[%emt 0:02:11]} Kxe6 {[%emt 0:00:11]} 39. Ng7+ {[%emt 0:00:36]} Ke5 {[%emt 0:
00:00]} 40. Rf5+ {[%emt 0:00:15]} Kd6 {[%emt 0:01:26]} 41. Kg1 {[%emt 0:30:15]}
d4 {[%emt 0:33:40]} 42. Kf2 {[%emt 0:00:08]} Ke7 {[%emt 0:00:17]} 43. Ne8 {
[%emt 0:00:48]} b6 {[%emt 0:02:16]} 44. Nc7 {[%emt 0:00:35]} Rxf7 {[%emt 0:00:
00]} 45. Rxf7+ {[%emt 0:00:16]} Kxf7 {[%emt 0:00:07]} 46. Nb5 {[%emt 0:00:05]}
Ke6 {[%emt 0:01:49]} 47. Nxd4+ {[%emt 0:00:21]} Kd5 {[%emt 0:00:32]} 48. Ke3 {
[%emt 0:00:07]} a6 {[%emt 0:01:16]} 49. Nf5 {[%emt 0:00:13]} b5 {[%emt 0:01:22]
} 50. g3 {[%emt 0:00:13]} Kc4 {[%emt 0:00:24]} 51. Kd2 {[%emt 0:00:18]} a5 {
[%emt 0:00:18]} 52. Ne3+ {[%emt 0:00:11]} Kb4 {[%emt 0:00:36]} 53. Nxg4 {
[%emt 0:00:11]} a4 {[%emt 0:00:13]} 54. Nf6 {[%emt 0:00:09]} h6 {[%emt 0:00:55]
} 55. Ng4 {[%emt 0:00:08]} Kc4 {[%emt 0:00:59]} 56. Nxh6 {[%emt 0:02:41]} b4 {
[%emt 0:00:43]} 57. Nf5 {[%emt 0:00:12]} a3 {[%emt 0:01:43]} 58. b3+ {[%emt 0:
00:00]} Kd5 {[%emt 0:00:10]} 59. Ne3+ {[%emt 0:00:28]} 1-0

[Event "44th Chess Olympiad Open 2022"]
[Site "Chennai"]
[Date "2022.08.01"]
[Round "4.65"]
[White "Cisse, Amadou Lamine"]
[Black "Chaulagain, Purushottam"]
[Result "0-1"]
[WhiteElo "2005"]
[BlackElo "1975"]
[Annotator "NA RC"]
[PlyCount "82"]
[EventDate "2022.??.??"]
[TimeControl "60"]

1. d4 {[%emt 0:00:13]} Nf6 {[%emt 0:00:10]} 2. Bg5 {[%emt 0:00:31]} g6 {
[%emt 0:02:29]} 3. Bxf6 {[%emt 0:00:26]} exf6 {[%emt 0:00:05]} 4. e3 {[%emt 0:
00:00]} Bg7 {[%emt 0:00:22]} 5. Bd3 {[%emt 0:00:21]} O-O {[%emt 0:00:13]} 6. h4
{[%emt 0:00:44]} d5 {[%emt 0:05:06]} 7. h5 {[%emt 0:00:23]} f5 {[%emt 0:00:28]}
8. hxg6 {[%emt 0:00:45]} fxg6 {[%emt 0:00:12]} 9. c4 {[%emt 0:00:31]} c5 {
[%emt 0:01:54]} 10. Ne2 {[%emt 0:04:45]} cxd4 {[%emt 0:02:24]} 11. exd4 {
[%emt 0:04:30]} Nc6 {[%emt 0:05:49]} 12. Nbc3 {[%emt 0:00:53]} Nxd4 {[%emt 0:
00:00]} 13. Nxd4 {[%emt 0:04:10]} Bxd4 {[%emt 0:00:27]} 14. Nxd5 {[%emt 0:00:
00]} Bxb2 {[%emt 0:08:46]} 15. Rb1 {[%emt 0:00:33]} Bg7 {[%emt 0:05:18]} 16.
Qf3 {[%emt 0:04:43]} f4 {[%emt 0:07:45]} 17. Rd1 {[%emt 0:02:36]} Bd7 {[%emt 0:
00:00]} 18. Rxh7 {[%emt 0:14:17]} Qg5 {[%emt 0:08:58]} 19. Bxg6 {[%emt 0:05:34]
} Rae8+ {[%emt 0:00:53]} 20. Be4 {[%emt 0:08:31]} Rxe4+ {[%emt 0:03:15]} 21.
Kf1 {[%emt 0:00:35]} Kxh7 {[%emt 0:07:35]} 22. Qxe4+ {[%emt 0:00:28]} Bf5 {
[%emt 0:01:02]} 23. Qe2 {[%emt 0:02:47]} Bg6 {[%emt 0:07:21]} 24. Qe7 {[%emt 0:
00:00]} Qxe7 {[%emt 0:04:02]} 25. Nxe7 {[%emt 0:00:04]} Bf7 {[%emt 0:02:25]}
26. Nd5 {[%emt 0:00:44]} Be5 {[%emt 0:02:04]} 27. Re1 {[%emt 0:00:54]} Bd6 {
[%emt 0:00:37]} 28. Rd1 {[%emt 0:00:46]} Kg7 {[%emt 0:01:34]} 29. Rd4 {[%emt 0:
00:00]} Be8 {[%emt 0:03:02]} 30. Ke2 {[%emt 0:02:17]} Bc6 {[%emt 0:00:51]} 31.
Kf3 {[%emt 0:01:13]} Bc5 {[%emt 0:04:52]} 32. Rxf4 {[%emt 0:02:59]} Rxf4+ {
[%emt 0:00:10]} 33. Kxf4 {[%emt 0:00:03]} Bxf2 {[%emt 0:00:52]} 34. Ke5 {
[%emt 0:00:34]} Bg3+ {[%emt 0:02:21]} 35. Ke6 {[%emt 0:00:06]} Kf8 {[%emt 0:00:
00]} 36. Kf5 {[%emt 0:01:11]} Kf7 {[%emt 0:00:47]} 37. Ne3 {[%emt 0:00:33]} Bf2
{[%emt 0:01:02]} 38. Nd5 {[%emt 0:00:18]} b5 {[%emt 0:00:34]} 39. Nb4 {[%emt 0:
00:00]} Bd7+ {[%emt 0:00:13]} 40. Kf4 {[%emt 0:00:23]} bxc4 {[%emt 0:00:20]}
41. g4 {[%emt 0:30:16]} c3 {[%emt 0:31:04]} 0-1

[Event "44th Chess Olympiad Open 2022"]
[Site "Chennai"]
[Date "2022.08.01"]
[Round "4.65"]
[White "Badji, Sekou Aransbene"]
[Black "Bhandari, Kshitiz"]
[Result "0-1"]
[WhiteElo "1732"]
[BlackElo "2071"]
[Annotator "NA RC"]
[PlyCount "132"]
[EventDate "2022.??.??"]
[TimeControl "60"]

1. d4 {[%emt 0:00:03]} Nf6 {[%emt 0:00:07]} 2. Nf3 {[%emt 0:00:27]} e6 {
[%emt 0:00:22]} 3. Bf4 {[%emt 0:01:08]} c5 {[%emt 0:00:16]} 4. e3 {[%emt 0:00:
00]} Nc6 {[%emt 0:00:15]} 5. c3 {[%emt 0:02:29]} d5 {[%emt 0:00:57]} 6. Bd3 {
[%emt 0:01:17]} Qb6 {[%emt 0:00:35]} 7. Qc2 {[%emt 0:02:34]} Bd7 {[%emt 0:00:
00]} 8. Nbd2 {[%emt 0:00:38]} Rc8 {[%emt 0:00:54]} 9. a3 {[%emt 0:01:13]} Be7 {
[%emt 0:01:06]} 10. O-O {[%emt 0:00:16]} h6 {[%emt 0:00:33]} 11. h3 {[%emt 0:
00:00]} O-O {[%emt 0:00:37]} 12. Rab1 {[%emt 0:00:23]} a5 {[%emt 0:00:28]} 13.
Qd1 {[%emt 0:00:19]} Rfd8 {[%emt 0:04:42]} 14. Re1 {[%emt 0:02:47]} Be8 {
[%emt 0:05:29]} 15. Ne5 {[%emt 0:03:53]} a4 {[%emt 0:02:09]} 16. Bc2 {[%emt 0:
00:00]} Ra8 {[%emt 0:00:29]} 17. Qf3 {[%emt 0:01:07]} Rdc8 {[%emt 0:00:45]} 18.
Nf1 {[%emt 0:11:43]} cxd4 {[%emt 0:04:24]} 19. Nxc6 {[%emt 0:00:59]} bxc6 {
[%emt 0:00:14]} 20. exd4 {[%emt 0:00:43]} c5 {[%emt 0:01:51]} 21. Be5 {[%emt 0:
00:00]} Nd7 {[%emt 0:01:55]} 22. Qd3 {[%emt 0:05:09]} Nf8 {[%emt 0:01:37]} 23.
dxc5 {[%emt 0:09:13]} Bxc5 {[%emt 0:00:51]} 24. Qg3 {[%emt 0:01:23]} f6 {
[%emt 0:00:40]} 25. Bf4 {[%emt 0:01:57]} g5 {[%emt 0:07:23]} 26. Be3 {[%emt 0:
00:00]} Bg6 {[%emt 0:03:22]} 27. Bxc5 {[%emt 0:00:55]} Rxc5 {[%emt 0:00:10]}
28. Bxg6 {[%emt 0:01:21]} Nxg6 {[%emt 0:00:12]} 29. Ne3 {[%emt 0:08:52]} Kf7 {
[%emt 0:04:41]} 30. Qf3 {[%emt 0:05:10]} Kg7 {[%emt 0:04:36]} 31. Nc2 {[%emt 0:
00:00]} Re8 {[%emt 0:05:26]} 32. Nd4 {[%emt 0:06:56]} Rcc8 {[%emt 0:00:18]} 33.
Re2 {[%emt 0:04:36]} Re7 {[%emt 0:13:13]} 34. Qe3 {[%emt 0:02:54]} Kf7 {
[%emt 0:01:36]} 35. Rbe1 {[%emt 0:00:35]} Nf4 {[%emt 0:01:38]} 36. Rd2 {
[%emt 0:00:55]} Qb7 {[%emt 0:03:20]} 37. g3 {[%emt 0:02:06]} Ng6 {[%emt 0:00:
00]} 38. Rde2 {[%emt 0:00:23]} Rce8 {[%emt 0:02:04]} 39. Qf3 {[%emt 0:04:23]}
Qd7 {[%emt 0:00:10]} 40. Qh5 {[%emt 0:00:30]} e5 {[%emt 0:00:42]} 41. Nf3 {
[%emt 0:30:42]} Kg7 {[%emt 0:33:28]} 42. Rd2 {[%emt 0:01:31]} Rd8 {[%emt 0:00:
00]} 43. Red1 {[%emt 0:00:49]} Qe6 {[%emt 0:00:42]} 44. Nh2 {[%emt 0:00:24]} f5
{[%emt 0:01:08]} 45. Qe2 {[%emt 0:02:05]} Rb7 {[%emt 0:03:07]} 46. Nf3 {
[%emt 0:00:00]} Rb6 {[%emt 0:00:00]} 47. Re1 {[%emt 0:00:00]} Kf6 {[%emt 0:00:
00]} 48. Qd1 {[%emt 0:00:00]} Qc6 {[%emt 0:00:00]} 49. Rde2 {[%emt 0:00:00]} e4
{[%emt 0:00:00]} 50. Nd4 {[%emt 0:00:00]} Qd7 {[%emt 0:00:00]} 51. Rd2 {
[%emt 0:00:00]} Ne5 {[%emt 0:00:00]} 52. Qh5 {[%emt 0:00:00]} Kg7 {[%emt 0:00:
00]} 53. h4 {[%emt 0:00:00]} Rg6 {[%emt 0:00:00]} 54. Rb1 {[%emt 0:00:00]} Ng4
{[%emt 0:00:00]} 55. Rf1 {[%emt 0:00:00]} Nf6 {[%emt 0:00:00]} 56. Qe2 {
[%emt 0:00:00]} gxh4 {[%emt 0:00:00]} 57. Kg2 {[%emt 0:00:00]} f4 {[%emt 0:00:
00]} 58. Qa6 {[%emt 0:00:00]} f3+ {[%emt 0:00:00]} 59. Kg1 {[%emt 0:00:00]} Qh3
{[%emt 0:00:00]} 60. Ne6+ {[%emt 0:00:00]} Kh8 {[%emt 0:00:00]} 61. Nf4 {
[%emt 0:00:00]} Qg4 {[%emt 0:00:00]} 62. Nxg6+ {[%emt 0:00:00]} Qxg6 {[%emt 0:
00:00]} 63. Qe6 {[%emt 0:01:20]} hxg3 {[%emt 0:00:00]} 64. fxg3 {[%emt 0:00:31]
} Qxg3+ {[%emt 0:00:00]} 65. Kh1 {[%emt 0:00:35]} Ng4 {[%emt 0:00:00]} 66. Rff2
{[%emt 0:03:08]} Rg8 {[%emt 0:00:00]} 0-1